{"text_format":"1","workbook":"xlsx","n_sheets":2,"sheets":["Sheet1","週間生産予定表"],"not_rendered":{"charts":0,"images":0,"macros":1,"external_links":0,"defined_names":0,"comments":1,"pivot_tables":0},"unopened":[],"bounds":{"document_bytes":16777216,"sheet_cells":100000,"rows_first":2000,"rows_last":500,"rows_between":2000,"halvings":0,"cell_chars":16384,"cell_head_chars":4096},"cells_cut":0,"cells_raw":0,"read":"whole","date_system":"1900"}

{"sheet":"Sheet1","index":0,"n_rows":74,"n_cols":62,"rows_kept":74,"cut":false,"hidden":false,"merged":[[0,47,0,48],[2,0,7,0],[38,0,43,0],[0,3,0,4],[0,14,0,15],[0,25,0,26],[0,36,0,37],[8,0,13,0],[14,0,19,0],[20,0,25,0],[26,0,31,0],[32,0,37,0],[45,1,46,8],[45,12,46,13],[45,14,46,14],[45,15,46,23],[47,0,50,0],[47,1,48,1],[47,2,48,8],[47,12,48,13],[47,14,48,14],[47,15,48,23],[49,1,50,1],[49,2,50,8],[49,12,50,13],[49,14,50,14],[49,15,50,23],[53,2,54,8],[53,12,54,13],[53,14,54,14],[53,15,54,23],[51,1,52,1],[51,2,52,8],[51,12,52,13],[51,14,52,14],[53,37,54,46],[53,47,54,50],[55,0,58,0],[55,1,56,1],[55,2,56,8],[55,12,56,13],[55,14,56,14],[55,15,56,23],[57,1,58,1],[57,2,58,8],[51,0,54,0],[57,12,58,13],[57,14,58,14],[57,15,58,23],[51,15,52,23],[53,1,54,1],[59,0,62,0],[59,1,60,1],[59,2,60,8],[59,12,60,13],[59,14,60,14],[59,15,60,23],[61,1,62,1],[61,2,62,8],[61,12,62,13],[61,14,62,14],[61,15,62,23],[63,0,66,0],[63,1,64,1],[63,2,64,8],[63,12,64,13],[63,14,64,14],[63,15,64,23],[67,0,70,0],[67,1,68,1],[67,2,68,8],[67,12,68,13],[67,14,68,14],[65,1,66,1],[65,2,66,8],[65,12,66,13],[65,14,66,14],[65,15,66,23],[67,15,68,23],[69,1,70,1],[69,2,70,8],[69,12,70,13],[69,14,70,14],[69,15,70,23],[73,15,74,23],[71,0,74,0],[71,1,72,1],[71,2,72,8],[71,12,72,13],[71,14,72,14],[71,15,72,23],[73,1,74,1],[73,2,74,8],[73,12,74,13],[73,14,74,14]]}
[null,null,null,null,null,"型","区",null,null,null,null,null,null,null,null,null,"型","区",null,null,null,null,null,null,null,null,null,"型","区",null,null,null,null,null,null,null,null,null,"型","区",null,null,null,null,null,null,null,null,null,"型","区"]
["月日","作業者","Ｈ","品名","成形数",null,null,"品名ｺｰﾄﾞ","備考","機械コード（非表示）","着手日（非表示）","手配番号（非表示）","作業者","Ｈ","品名","成形数",null,null,"品名ｺｰﾄﾞ","備考","機械コード（非表示）","着手日（非表示）","手配番号（非表示）","作業者","Ｈ","品名","成形数",null,null,"品名ｺｰﾄﾞ","備考","機械コード（非表示）","着手日（非表示）","手配番号（非表示）","作業者","Ｈ","品名","成形数",null,null,"品名ｺｰﾄﾞ","備考","機械コード（非表示）","着手日（非表示）","手配番号（非表示）","作業者","Ｈ","品名","成形数",null,null,"品名ｺｰﾄﾞ","備考","機械コード（非表示）","着手日（非表示）","手配番号（非表示）"]
[null,null,null,null,null,null,null,null,null,null,null,null,null,null,null,null,null,null,null,null,null,null,null,null,null,null,null,null,null,null,null,null,null,null,null,null,null,null,null,null,null,null,null,null,null,null,null,null,null,null,null,null,null,null,null,null,{"$f":"B3&F3","v":""},{"$f":"M3&Q3","v":""},{"$f":"X3&AB3","v":""},{"$f":"AI3&AM3","v":""},{"$f":"AT3&AX3","v":""},{"$f":"COUNTIF(BE3:BE8,\"自動1\")+COUNTIF(BF3:BF8,\"自動1\")+COUNTIF(BG3:BG8,\"自動1\")+COUNTIF(BH3:BH8,\"自動1\")+COUNTIF(BI3:BI8,\"自動1\")","v":0}]
[null,null,null,null,null,null,null,null,null,null,null,null,null,null,null,null,null,null,null,null,null,null,null,null,null,null,null,null,null,null,null,null,null,null,null,null,null,null,null,null,null,null,null,null,null,null,null,null,null,null,null,null,null,null,null,null,{"$f":"B4&F4","v":""},{"$f":"M4&Q4","v":""},{"$f":"X4&AB4","v":""},{"$f":"AI4&AM4","v":""},{"$f":"AT4&AX4","v":""}]
[null,null,null,null,null,null,null,null,null,null,null,null,null,null,null,null,null,null,null,null,null,null,null,null,null,null,null,null,null,null,null,null,null,null,null,null,null,null,null,null,null,null,null,null,null,null,null,null,null,null,null,null,null,null,null,null,"","","","",""]
[null,null,null,null,null,null,null,null,null,null,null,null,null,null,null,null,null,null,null,null,null,null,null,null,null,null,null,null,null,null,null,null,null,null,null,null,null,null,null,null,null,null,null,null,null,null,null,null,null,null,null,null,null,null,null,null,"","","","",""]
[null,null,null,null,null,null,null,null,null,null,null,null,null,null,null,null,null,null,null,null,null,null,null,null,null,null,null,null,null,null,null,null,null,null,null,null,null,null,null,null,null,null,null,null,null,null,null,null,null,null,null,null,null,null,null,null,"","","","",""]
[null,null,null,null,null,null,null,null,null,null,null,null,null,null,null,null,null,null,null,null,null,null,null,null,null,null,null,null,null,null,null,null,null,null,null,null,null,null,null,null,null,null,null,null,null,null,null,null,null,null,null,null,null,null,null,null,"","","","",""]
[null,null,null,null,null,null,null,null,null,null,null,null,null,null,null,null,null,null,null,null,null,null,null,null,null,null,null,null,null,null,null,null,null,null,null,null,null,null,null,null,null,null,null,null,null,null,null,null,null,null,null,null,null,null,null,null,"","","","","",{"$f":"COUNTIF(BE9:BE14,\"自動1\")+COUNTIF(BF9:BF14,\"自動1\")+COUNTIF(BG9:BG14,\"自動1\")+COUNTIF(BH9:BH14,\"自動1\")+COUNTIF(BI9:BI14,\"自動1\")","v":0}]
[null,null,null,null,null,null,null,null,null,null,null,null,null,null,null,null,null,null,null,null,null,null,null,null,null,null,null,null,null,null,null,null,null,null,null,null,null,null,null,null,null,null,null,null,null,null,null,null,null,null,null,null,null,null,null,null,"","","","",""]
[null,null,null,null,null,null,null,null,null,null,null,null,null,null,null,null,null,null,null,null,null,null,null,null,null,null,null,null,null,null,null,null,null,null,null,null,null,null,null,null,null,null,null,null,null,null,null,null,null,null,null,null,null,null,null,null,"","","","",""]
[null,null,null,null,null,null,null,null,null,null,null,null,null,null,null,null,null,null,null,null,null,null,null,null,null,null,null,null,null,null,null,null,null,null,null,null,null,null,null,null,null,null,null,null,null,null,null,null,null,null,null,null,null,null,null,null,"","","","",""]
[null,null,null,null,null,null,null,null,null,null,null,null,null,null,null,null,null,null,null,null,null,null,null,null,null,null,null,null,null,null,null,null,null,null,null,null,null,null,null,null,null,null,null,null,null,null,null,null,null,null,null,null,null,null,null,null,"","","","",""]
[null,null,null,null,null,null,null,null,null,null,null,null,null,null,null,null,null,null,null,null,null,null,null,null,null,null,null,null,null,null,null,null,null,null,null,null,null,null,null,null,null,null,null,null,null,null,null,null,null,null,null,null,null,null,null,null,"","","","",""]
[null,null,null,null,null,null,null,null,null,null,null,null,null,null,null,null,null,null,null,null,null,null,null,null,null,null,null,null,null,null,null,null,null,null,null,null,null,null,null,null,null,null,null,null,null,null,null,null,null,null,null,null,null,null,null,null,"","","","","",{"$f":"COUNTIF(BE15:BE20,\"自動1\")+COUNTIF(BF15:BF20,\"自動1\")+COUNTIF(BG15:BG20,\"自動1\")+COUNTIF(BH15:BH20,\"自動1\")+COUNTIF(BI15:BI20,\"自動1\")","v":0}]
[null,null,null,null,null,null,null,null,null,null,null,null,null,null,null,null,null,null,null,null,null,null,null,null,null,null,null,null,null,null,null,null,null,null,null,null,null,null,null,null,null,null,null,null,null,null,null,null,null,null,null,null,null,null,null,null,"","","","",""]
[null,null,null,null,null,null,null,null,null,null,null,null,null,null,null,null,null,null,null,null,null,null,null,null,null,null,null,null,null,null,null,null,null,null,null,null,null,null,null,null,null,null,null,null,null,null,null,null,null,null,null,null,null,null,null,null,"","","","",""]
[null,null,null,null,null,null,null,null,null,null,null,null,null,null,null,null,null,null,null,null,null,null,null,null,null,null,null,null,null,null,null,null,null,null,null,null,null,null,null,null,null,null,null,null,null,null,null,null,null,null,null,null,null,null,null,null,"","","","",""]
[null,null,null,null,null,null,null,null,null,null,null,null,null,null,null,null,null,null,null,null,null,null,null,null,null,null,null,null,null,null,null,null,null,null,null,null,null,null,null,null,null,null,null,null,null,null,null,null,null,null,null,null,null,null,null,null,"","","","",""]
[null,null,null,null,null,null,null,null,null,null,null,null,null,null,null,null,null,null,null,null,null,null,null,null,null,null,null,null,null,null,null,null,null,null,null,null,null,null,null,null,null,null,null,null,null,null,null,null,null,null,null,null,null,null,null,null,"","","","",""]
[null,null,null,null,null,null,null,null,null,null,null,null,null,null,null,null,null,null,null,null,null,null,null,null,null,null,null,null,null,null,null,null,null,null,null,null,null,null,null,null,null,null,null,null,null,null,null,null,null,null,null,null,null,null,null,null,"","","","","",{"$f":"COUNTIF(BE21:BE26,\"自動1\")+COUNTIF(BF21:BF26,\"自動1\")+COUNTIF(BG21:BG26,\"自動1\")+COUNTIF(BH21:BH26,\"自動1\")+COUNTIF(BI21:BI26,\"自動1\")","v":0}]
[null,null,null,null,null,null,null,null,null,null,null,null,null,null,null,null,null,null,null,null,null,null,null,null,null,null,null,null,null,null,null,null,null,null,null,null,null,null,null,null,null,null,null,null,null,null,null,null,null,null,null,null,null,null,null,null,"","","","",""]
[null,null,null,null,null,null,null,null,null,null,null,null,null,null,null,null,null,null,null,null,null,null,null,null,null,null,null,null,null,null,null,null,null,null,null,null,null,null,null,null,null,null,null,null,null,null,null,null,null,null,null,null,null,null,null,null,"","","","",""]
[null,null,null,null,null,null,null,null,null,null,null,null,null,null,null,null,null,null,null,null,null,null,null,null,null,null,null,null,null,null,null,null,null,null,null,null,null,null,null,null,null,null,null,null,null,null,null,null,null,null,null,null,null,null,null,null,"","","","",""]
[null,null,null,null,null,null,null,null,null,null,null,null,null,null,null,null,null,null,null,null,null,null,null,null,null,null,null,null,null,null,null,null,null,null,null,null,null,null,null,null,null,null,null,null,null,null,null,null,null,null,null,null,null,null,null,null,"","","","",""]
[null,null,null,null,null,null,null,null,null,null,null,null,null,null,null,null,null,null,null,null,null,null,null,null,null,null,null,null,null,null,null,null,null,null,null,null,null,null,null,null,null,null,null,null,null,null,null,null,null,null,null,null,null,null,null,null,"","","","",""]
[null,null,null,null,null,null,null,null,null,null,null,null,null,null,null,null,null,null,null,null,null,null,null,null,null,null,null,null,null,null,null,null,null,null,null,null,null,null,null,null,null,null,null,null,null,null,null,null,null,null,null,null,null,null,null,null,"","","","","",{"$f":"COUNTIF(BE27:BE32,\"自動1\")+COUNTIF(BF27:BF32,\"自動1\")+COUNTIF(BG27:BG32,\"自動1\")+COUNTIF(BH27:BH32,\"自動1\")+COUNTIF(BI27:BI32,\"自動1\")","v":0}]
[null,null,null,null,null,null,null,null,null,null,null,null,null,null,null,null,null,null,null,null,null,null,null,null,null,null,null,null,null,null,null,null,null,null,null,null,null,null,null,null,null,null,null,null,null,null,null,null,null,null,null,null,null,null,null,null,"","","","",""]
[null,null,null,null,null,null,null,null,null,null,null,null,null,null,null,null,null,null,null,null,null,null,null,null,null,null,null,null,null,null,null,null,null,null,null,null,null,null,null,null,null,null,null,null,null,null,null,null,null,null,null,null,null,null,null,null,"","","","",""]
[null,null,null,null,null,null,null,null,null,null,null,null,null,null,null,null,null,null,null,null,null,null,null,null,null,null,null,null,null,null,null,null,null,null,null,null,null,null,null,null,null,null,null,null,null,null,null,null,null,null,null,null,null,null,null,null,"","","","",""]
[null,null,null,null,null,null,null,null,null,null,null,null,null,null,null,null,null,null,null,null,null,null,null,null,null,null,null,null,null,null,null,null,null,null,null,null,null,null,null,null,null,null,null,null,null,null,null,null,null,null,null,null,null,null,null,null,"","","","",""]
[null,null,null,null,null,null,null,null,null,null,null,null,null,null,null,null,null,null,null,null,null,null,null,null,null,null,null,null,null,null,null,null,null,null,null,null,null,null,null,null,null,null,null,null,null,null,null,null,null,null,null,null,null,null,null,null,"","","","",""]
[null,null,null,null,null,null,null,null,null,null,null,null,null,null,null,null,null,null,null,null,null,null,null,null,null,null,null,null,null,null,null,null,null,null,null,null,null,null,null,null,null,null,null,null,null,null,null,null,null,null,null,null,null,null,null,null,"","","","","",{"$f":"COUNTIF(BE33:BE38,\"自動1\")+COUNTIF(BF33:BF38,\"自動1\")+COUNTIF(BG33:BG38,\"自動1\")+COUNTIF(BH33:BH38,\"自動1\")+COUNTIF(BI33:BI38,\"自動1\")","v":0}]
[null,null,null,null,null,null,null,null,null,null,null,null,null,null,null,null,null,null,null,null,null,null,null,null,null,null,null,null,null,null,null,null,null,null,null,null,null,null,null,null,null,null,null,null,null,null,null,null,null,null,null,null,null,null,null,null,"","","","",""]
[null,null,null,null,null,null,null,null,null,null,null,null,null,null,null,null,null,null,null,null,null,null,null,null,null,null,null,null,null,null,null,null,null,null,null,null,null,null,null,null,null,null,null,null,null,null,null,null,null,null,null,null,null,null,null,null,"","","","",""]
[null,null,null,null,null,null,null,null,null,null,null,null,null,null,null,null,null,null,null,null,null,null,null,null,null,null,null,null,null,null,null,null,null,null,null,null,null,null,null,null,null,null,null,null,null,null,null,null,null,null,null,null,null,null,null,null,"","","","",""]
[null,null,null,null,null,null,null,null,null,null,null,null,null,null,null,null,null,null,null,null,null,null,null,null,null,null,null,null,null,null,null,null,null,null,null,null,null,null,null,null,null,null,null,null,null,null,null,null,null,null,null,null,null,null,null,null,"","","","",""]
[null,null,null,null,null,null,null,null,null,null,null,null,null,null,null,null,null,null,null,null,null,null,null,null,null,null,null,null,null,null,null,null,null,null,null,null,null,null,null,null,null,null,null,null,null,null,null,null,null,null,null,null,null,null,null,null,"","","","",""]
[null,null,null,null,null,null,null,null,null,null,null,null,null,null,null,null,null,null,null,null,null,null,null,null,null,null,null,null,null,null,null,null,null,null,null,null,null,null,null,null,null,null,null,null,null,null,null,null,null,null,null,null,null,null,null,null,"","","","","",{"$f":"COUNTIF(BE39:BE44,\"自動1\")+COUNTIF(BF39:BF44,\"自動1\")+COUNTIF(BG39:BG44,\"自動1\")+COUNTIF(BH39:BH44,\"自動1\")+COUNTIF(BI39:BI44,\"自動1\")","v":0}]
[null,null,null,null,null,null,null,null,null,null,null,null,null,null,null,null,null,null,null,null,null,null,null,null,null,null,null,null,null,null,null,null,null,null,null,null,null,null,null,null,null,null,null,null,null,null,null,null,null,null,null,null,null,null,null,null,"","","","",""]
[null,null,null,null,null,null,null,null,null,null,null,null,null,null,null,null,null,null,null,null,null,null,null,null,null,null,null,null,null,null,null,null,null,null,null,null,null,null,null,null,null,null,null,null,null,null,null,null,null,null,null,null,null,null,null,null,"","","","",""]
[null,null,null,null,null,null,null,null,null,null,null,null,null,null,null,null,null,null,null,null,null,null,null,null,null,null,null,null,null,null,null,null,null,null,null,null,null,null,null,null,null,null,null,null,null,null,null,null,null,null,null,null,null,null,null,null,"","","","",""]
[null,null,null,null,null,null,null,null,null,null,null,null,null,null,null,null,null,null,null,null,null,null,null,null,null,null,null,null,null,null,null,null,null,null,null,null,null,null,null,null,null,null,null,null,null,null,null,null,null,null,null,null,null,null,null,null,"","","","",""]
[null,null,null,null,null,null,null,null,null,null,null,null,null,null,null,null,null,null,null,null,null,null,null,null,null,null,null,null,null,null,null,null,null,null,null,null,null,null,null,null,null,null,null,null,null,null,null,null,null,null,null,null,null,null,null,null,"","","","",""]
[]
[null,"休み",null,null,null,null,null,null,null,null,null,null,"自動機補",null,"仕上げ","粉砕・プレス"]
[]
[null,"早"]
[]
[null,"遅"]
[]
[null,"早"]
[]
[null,"遅",null,null,null,null,null,null,null,null,null,null,null,null,null,null,null,null,null,null,null,null,null,null,null,null,null,null,null,null,null,null,null,null,null,null,null,"確　認　者",null,null,null,null,null,null,null,null,null,"作　成　者"]
[]
[null,"早"]
[]
[null,"遅"]
[]
[null,"早"]
[]
[null,"遅"]
[]
[null,"早"]
[]
[null,"遅"]
[]
[null,"早"]
[]
[null,"遅"]
[]
[null,"早"]
[]
[null,"遅"]

{"sheet":"週間生産予定表","index":1,"n_rows":0,"n_cols":0,"rows_kept":0,"cut":false,"hidden":false,"merged":[]}